Cogmind - Beta 16 @@@ ROGUE MODE // 2025.11.13 @ 22:11:31 // AFD2019/Pay2Buy Player: GFYguy Result: Self-destructed Performance ------------- Evolutions (1) 500 Regions Visited (3) 600 Robots Destroyed (12) 60 Value Destroyed (228) 228 Prototype IDs (2) 40 Alien Tech Used (0) 0 Bonus (0) 0 TOTAL SCORE: 1428 Bonus ------- None Cogmind --------- Core Integrity 336/400 Matter 300/300 Energy 8/100 System Corruption 0% Temperature Cool (0) Movement Flying (37) Location -9/Materials Parts ------- > --- POWER (1) -------- (None) > --- PROPULSION (4) --- Improved Flight Unit Improved Flight Unit > --- UTILITY (2) ------ Shield Generator > --- WEAPON (2) ------- Salvaging Laser Spread Laser > --- INVENTORY (10) --- Enhanced Nuclear Core Disposable Heat Sink Peak State ------------ > --- POWER ------------ Enhanced Nuclear Core > --- PROPULSION ------- Improved Flight Unit Improved Flight Unit > --- UTILITY ---------- Shield Generator > --- WEAPON ----------- Spread Laser > --- INVENTORY -------- Disposable Heat Sink Salvaging Laser [Rating: 15] Favorites ----------- Power Light Ion Engine Engine Light Ion Engine Power Core Enhanced Nuclear Core Propulsion Improved Flight Unit Flight Unit Improved Flight Unit Utility Shield Generator Device Shield Generator Weapon Spread Laser Energy Gun Spread Laser Build | -11 -10 -10 -9 ------- Run | Yrd Mat Min Mat Slots Evolved 2 | . . . 2 Power . | . . . . Propulsion 2 | . . . 2 Utility . | . . . . Weapon . | . . . . Parts Attached 2 | . . 2 . Power 1 | . . 1 . Engine . | . . . . Core 1 | . . 1 . Reactor . | . . . . Propulsion . | . . . . Treads . | . . . . Leg . | . . . . Wheel . | . . . . Hover . | . . . . Flight . | . . . . Utility . | . . . . Device . | . . . . Storage . | . . . . Processor . | . . . . Hackware . | . . . . Protection . | . . . . Artifact . | . . . . Weapon 1 | . . 1 . Energy Gun 1 | . . 1 . Energy Cannon . | . . . . Ballistic Gun . | . . . . Ballistic Cannon . | . . . . Launcher . | . . . . Special Weapon . | . . . . Impact Weapon . | . . . . Slashing Weapon . | . . . . Piercing Weapon . | . . . . Special Melee Weapon . | . . . . Unidentified Prototypes . | . . . . Parts Lost 1 | . . 1 . Power 1 | . . 1 . Propulsion . | . . . . Utility . | . . . . Weapon . | . . . . Highest Loss Streak 1 | . . 1 . To Critical Strikes . | . . . . Average Backups 1 | . . 1 2 Power . | . . . 1 Propulsion . | . . . . Utility . | . . . 1 Weapon . | . . . . Tool/Special . | . . . . Unused Backups . | . . . . Power . | . . . . Propulsion . | . . . . Utility . | . . . . Weapon . | . . . . Tool/Special . | . . . . Average Slot Usage (%) 81 | . 100 77 55 Engine 5 | . 14 1 . Flight 27 | . 28 28 22 Device 20 | . 28 18 11 Energy Gun 27 | . 28 28 22 Peak Build Rating 15 | 14 14 15 11 Average Rating 12 | 12 14 11 11 On Entrance 9 | . 14 14 11 Avg Prop Armor Cover (%) . | . . . . Naked Turns . | . . . . Heaviest Build 10 | 10 10 10 6 Greatest Support 10 | 10 10 10 10 Greatest Overweight (x) . | . . . . Average Overweight (x) . | . . . . Largest Inventory Capacity 10 | 10 10 10 10 Average Capacity 10 | 10 10 10 10 Most Carried 3 | . 1 3 2 Average Carried 1 | . . 1 2 Final Capacity 10 | 10 10 10 10 Final Carried 2 | . 1 2 2 Class Distribution -------------------- 100% | Mutant Dominant Class ---------------- Mutant | -10/Materials Mutant | -10/Mines Mutant | -9/Materials Resources | -11 -10 -10 -9 ----------- Run | Yrd Mat Min Mat Matter Collected 220 | 95 105 20 . Remotely . | . . . . Salvage Created 397 | 95 211 91 . Parts . | . . . . Haulers Intercepted 2 | . 2 . . Recyclers Shooed . | . . . . Parts Field Recycled . | . . . . Retrieved Matter . | . . . . Parts Self-Destructed . | . . . . Prevented . | . . . . Parts Restored . | . . . . Kills | -11 -10 -10 -9 ------- Run | Yrd Mat Min Mat Combat Hostiles Destroyed 4 | . 2 2 . Guns 4 | . 2 2 . Classes Destroyed 7 | 2 4 1 . Worker 1 | . . 1 . Tunneler 1 | 1 . . . Hauler 2 | . 2 . . Recycler 1 | 1 . . . Operator 1 | . 1 . . Watcher 2 | . 2 . . Grunt 4 | . 2 2 . Best Kill Streak 3 | 2 3 3 . Combat Bots Only 2 | . 2 2 . Max Kills in Single Turn 1 | 1 1 1 . Gunslinging . | . . . . Exploded . | . . . . Melee . | . . . . Uniques/NPCs Destroyed . | . . . . Combat | -11 -10 -10 -9 -------- Run | Yrd Mat Min Mat Hostile Shots Fired 35 | . 11 12 12 Missed 12 | . 4 6 2 Hits 23 | . 7 6 10 Projectile 23 | . 7 6 10 Critical Strikes 1 | . . . 1 Damage Taken 241 | . 65 63 113 Core 73 | . 9 . 64 Absorbed by Shields 76 | . 25 24 27 Core Remaining (%) 98 | 100 . 96 . Volleys Fired 26 | 2 16 4 4 Largest 2 | 2 2 2 2 Hottest 95 | 95 95 95 95 Shots Fired 52 | 4 32 8 8 Gun 52 | 4 32 8 8 Cannon . | . . . . Launcher . | . . . . Special . | . . . . Kinetic . | . . . . Thermal 52 | 4 32 8 8 Explosive . | . . . . Electromagnetic . | . . . . Robot Hit Streak 10 | 4 6 10 4 Robot Miss Streak 8 | 1 8 1 3 Penetration Max . | . . . . Secondary Targets . | . . . . Shots Hit Robots 39 | 3 24 7 5 Core Hits 44 | 5 23 11 5 Critical Kills . | . . . . Critical Parts Destroyed . | . . . . Critical Strikes . | . . . . Melee Attacks . | . . . . Impact . | . . . . Slashing . | . . . . Piercing . | . . . . Sneak Attacks . | . . . . Combat Hostiles . | . . . . Follow-up Attacks . | . . . . Damage Inflicted 468 | 36 289 78 65 Guns 468 | 36 289 78 65 Cannons . | . . . . Explosions . | . . . . Melee . | . . . . Ramming . | . . . . Kinetic . | . . . . Thermal 468 | 36 289 78 65 Explosive . | . . . . Electromagnetic . | . . . . Impact . | . . . . Slashing . | . . . . Piercing . | . . . . Highest Corruption . | . . . . Average Corruption . | . . . . Corruption Purged . | . . . . Corruption Blocked . | . . . . Overload Shots . | . . . . Overflow Damage . | . . . . Projectiles . | . . . . Explosions . | . . . . Melee . | . . . . Knockbacks . | . . . . Impact . | . . . . Kinetic . | . . . . Secondary . | . . . . Self-Inflicted Damage . | . . . . Shots . | . . . . Rammed . | . . . . Targets Rammed . | . . . . Kicked . | . . . . Crushed . | . . . . Highest Temperature 191 | 88 191 123 78 Average Temperature 76 | 55 90 49 39 Received Heat Transfer 104 | . 34 32 38 Siege Activations . | . . . . Martial Activations . | . . . . Shielding Activations . | . . . . Robots Disrupted . | . . . . Combat Hostiles . | . . . . Robots Corrupted . | . . . . Combat Hostiles . | . . . . Parts Fried . | . . . . Impact Corruptions . | . . . . Robots Melted . | . . . . Combat Hostiles . | . . . . Parts Melted . | . . . . Heat Transferred 795 | 70 490 145 90 Parts Sabotaged . | . . . . Parts Stolen . | . . . . Parts Stripped . | . . . . Power Chain Reactions . | . . . . Alert | -11 -10 -10 -9 ------- Run | Yrd Mat Min Mat Maximum Alert Level . | . . . . Low Security (%) 100 | 100 100 100 100 Level 1 . | . . . . Level 2 . | . . . . Level 3 . | . . . . Level 4 . | . . . . Level 5 . | . . . . High Security . | . . . . Max Security . | . . . . Peak Influence 60 | 10 60 50 14 Initial 22 | . 6 22 . Average 18 | 4 25 18 3 Influence Increases 266 | 10 127 115 14 Destroy 0b10 Robot/C 80 | . 40 40 . Destroy 0b10 Robot/NC 40 | 10 25 5 . Destroy Leader 28 | . 18 10 . Successful Hack 58 | . 44 . 14 Partial Spotted 30 | . . 30 . Lose Combat Pursuer 30 | . . 30 . Influence Decreases 266 | . 80 172 14 Entered New Map 39 | . 4 35 . Time Decay 220 | . 76 130 14 Lost Part 7 | . . 7 . Squads Dispatched 2 | . 1 . 1 Investigation 1 | . 1 . . Extermination . | . . . . Reinforcement 1 | . . . 1 Assault . | . . . . Garrison . | . . . . Intercept . | . . . . Searches Triggered . | . . . . Construction Impeded . | . . . . Haulers Reinforced . | . . . . Active Scanning Responses . | . . . . Cargo Convoy Interrupts . | . . . . Stealth | -11 -10 -10 -9 --------- Run | Yrd Mat Min Mat Distress Signals 1 | . . . 1 Communications Jammed . | . . . . Distress Signals . | . . . . Times Spotted 28 | . 5 17 6 Peak Tracking Total 22 | . 2 22 3 Tactical Retreats 1 | . . 1 . Traps | -11 -10 -10 -9 ------- Run | Yrd Mat Min Mat Traps Triggered 1 | . 1 . . Indirectly . | . . . . Trap Hack Attempts . | . . . . Triggered . | . . . . Disarmed 1 | . 1 . . Reprogrammed . | . . . . Reused . | . . . . Traps Extracted . | . . . . Installed . | . . . . Triggered . | . . . . Machines | -11 -10 -10 -9 ---------- Run | Yrd Mat Min Mat Machines Disabled . | . . . . Max in Single Turn . | . . . . Machines Repaired . | . . . . Machines Dismantled . | . . . . Machines Sabotaged . | . . . . Overloaded Fab Kills . | . . . . Hacking | -11 -10 -10 -9 --------- Run | Yrd Mat Min Mat Machines Accessed 7 | . 5 1 1 Terminals 7 | . 5 1 1 Fabricators . | . . . . Repair Stations . | . . . . Recycling Units . | . . . . Scanalyzers . | . . . . Garrison Access . | . . . . Total Hacks 24 | . 20 2 2 Successful 16 | . 14 1 1 Failed 8 | . 6 1 1 Catastrophic 1 | . 1 . . Database Lockouts . | . . . . Manual . | . . . . Terminals 24 | . 20 2 2 Fabricators . | . . . . Repair Stations . | . . . . Recycling Units . | . . . . Scanalyzers . | . . . . Garrison Access . | . . . . Terminal Hacks 16 | . 14 1 1 Record 1 | . 1 . . Robot Analysis 2 | . 1 . 1 Terminal Index 1 | . 1 . . Alert Level 2 | . 2 . . Locate Traps 1 | . 1 . . Disarm Traps 1 | . 1 . . Dispatch Records 1 | . 1 . . Maintenance Status 1 | . 1 . . Surveillance Status 2 | . 2 . . Patrol Status 1 | . 1 . . Investigation Status 1 | . . 1 . Hauler Manifests 2 | . 2 . . Fabricator Hacks . | . . . . Repair Station Hacks . | . . . . Recycling Unit Hacks . | . . . . Scanalyzer . | . . . . Garrison Access Hacks . | . . . . Unauthorized Hacks . | . . . . Terminals . | . . . . Fabricators . | . . . . Repair Stations . | . . . . Recycling Units . | . . . . Scanalyzers . | . . . . Garrison Access . | . . . . Data Cores Recovered 1 | . 1 . . Used . | . . . . Hacking Detections 7 | . 5 1 1 Full Trace Events 2 | . 2 . . Feedback Events . | . . . . Feedback Blocked . | . . . . Robot Schematics Acquired . | . . . . Robots Built . | . . . . Authchips . | . . . . Time . | . . . . Total Robot Build Rating . | . . . . Part Schematics Acquired . | . . . . Parts Built . | . . . . Authchips . | . . . . Time . | . . . . Total Part Build Rating . | . . . . Part Studies Acquired . | . . . . Parts Repaired . | . . . . Time . | . . . . Parts Recycled . | . . . . Recycled Matter . | . . . . Retrieved Matter . | . . . . Retrieved Components . | . . . . Parts Scanalyzed . | . . . . Part Schematics Acquired . | . . . . Parts Damaged . | . . . . Bothacking | -11 -10 -10 -9 ------------ Run | Yrd Mat Min Mat Used RIF Installer . | . . . . Robots Hacked . | . . . . Non-combat . | . . . . Combat . | . . . . Robot Hacks Applied . | . . . . Relay Couplers Released . | . . . . Fabnet Peak Effective % . | . . . . Robots Rewired . | . . . . Allies Hacked . | . . . . Hacks Repelled . | . . . . Allies | -11 -10 -10 -9 -------- Run | Yrd Mat Min Mat Total Allies . | . . . . Largest Group . | . . . . Highest-Rated Group . | . . . . Highest-Rated Ally . | . . . . Total Orders . | . . . . Ally Attacks . | . . . . Total Damage . | . . . . Kills . | . . . . Allies Corrupted . | . . . . Allies Melted . | . . . . Intel | -11 -10 -10 -9 ------- Run | Yrd Mat Min Mat Active Infowar (turns) . | . . . . Robot Analysis Total 2 | . 1 . 1 Derelict Logs Recovered . | . . . . Drone Launches . | . . . . Drone Recoveries . | . . . . Exploration | -11 -10 -10 -9 ------------- Run | Yrd Mat Min Mat Turns Passed 648 | 13 178 380 77 Spaces Moved 814 | 21 347 344 102 Core 1 | 1 . . . Treads . | . . . . Legs . | . . . . Wheels . | . . . . Hover . | . . . . Flight 813 | 20 347 344 102 Fastest Speed 37 | 37 37 37 37 Average Speed 37 | 37 37 37 37 Slowest Speed 50 | 50 37 37 37 Overloaded Moves . | . . . . Propulsion Burnouts . | . . . . Robots Hopped 7 | . . 7 . Potential Cave-ins . | . . . . Cave-ins Triggered . | . . . . Exploration Rate (%) 43 | 3 63 90 18 Regions Visited 3 Branch Regions 1 Pre-discovered Areas . | . . . . Known Exits Taken . | . . . . Unknown Exits Taken 3 | 1 1 1 . Scrap Searched . | . . . . Spaces Dug . | . . . . Terrain Destroyed . | . . . . Melee . | . . . . Projectile . | . . . . AOE . | . . . . Terrain Rammed . | . . . . Walls Destroyed . | . . . . Machines Disabled . | . . . . Actions | -11 -10 -10 -9 --------- Run | Yrd Mat Min Mat Total 1110 | 22 370 584 134 Wait 274 | . 8 238 28 Move 797 | 20 346 329 102 Hop 7 | . . 7 . Pick Up 1 | . . 1 . Fast Attach . | . . . . Attach 2 | . . 2 . Detach 2 | . . 2 . Swap . | . . . . Drop 1 | . . 1 . Fire 26 | 2 16 4 4 Melee . | . . . . Ram . | . . . . Kick . | . . . . Crush . | . . . . Escape Stasis . | . . . . Rewire . | . . . . Trap . | . . . . Miscellaneous . | . . . . Route ------- -11/Scrapyard -10/Materials (discovered 2 exits: *Mat / *Min) -10/Mines (discovered 2 exits: *Mat x2) -9/Materials History --------- Turn | Location | Event 2 | -11/Scrapyard | Met Revision 17 3 | -11/Scrapyard | Discovered new exit (range 15) 14 | -11/Scrapyard | Entered Materials 92 | -10/Materials | Discovered new exit (range 16) 131 | -10/Materials | Discovered new exit (range 14) 192 | -10/Materials | Entered Mines 305 | -10/Mines | Build established: Mutant 337 | -10/Mines | Assembled infested the area 565 | -10/Mines | Discovered new exit (range 7) 568 | -10/Mines | Discovered new exit (range 5) 572 | -10/Mines | Entered Materials 572 | -9/Materials | Evolved 2 slots: Propulsion x2 649 | -9/Materials | Self-destructed Last Messages --------------- GOAL=ESCAPE 00575_ Connecting with Terminal... 00575_ Current location identified: Materials >>Analysis(Guru) Downloading analysis... Guru Tier: 3 A primitive hacker of machines, loosely related to the old P-50 design, this type of derelict is incapable of employing anything other than brute force against live targets. 00585_ W-16 Scout sends out distress signal. 00589_ O-16 Technician uses terminal to summon reinforcements. 00589_ ALERT: Hostiles spotted, dispatching reinforcements to Terminal M009. 00589_ O-16 Technician locks terminal. 00590_ U-05 Engineer works on Processing Tank. 00621_ U-05 Engineer lays Concrete. 00623_ T-07 Excavator is excavating. 00623_ U-05 Engineer lays Concrete. 00626_ Critical hit (Burn: +26). Map ----- +----------------------------------------------------+ | ?????????????????????????????????????????????????? | | ?????????????????????????????????????????????????? | | ?????????????????????????????????????????????????? | | ?????????????????????????????????????????????????? | | ?????????????????????????????????????????????????? | | ?????????????????????????????????????????????????? | | ?????????????????????????????????????????????????? | | ?????????????????????????????????????????????????? | | ?????????????????????????????????????????????????? | | ?????????????????????????????????????????????????? | | ????????????????????? ?????????????????????????? | | ????????????????????# #????????????????????????? | | ????????????????????# #????????????????????????? | | #???????????????????# #????????????????????????? | | #???????????????????# #????????????????????????? | | #???????????????????# #????????????????????????? | | #???????##?????????## ##???????????????????????? | | #?##### #?????????# #???????????????????????? | | ### # #??????????# #???????????????????????? | | + #??????????# +???????????????????????? | | ### # #??????????# #???????????????????????? | | #?# #????????????# #???????????????????????? | | #?# #?????????????# #????????????????????????? | | ### #?????????????# ########?????????????????? | | """ #??????######## # """ #?????????????????? | | "T" ######## + /@ """ #?????????????????? | | / """ # # """ #?????????????????? | | ######## "R # # #?????????????????? | | ##??????# """ # # #?????????????????? | | #???????# # # #?????????????????? | | #???????# # ########?????????????????? | | ######??######## #????????????????????????? | | ???????? #????????????????????????? | | ######????????## #????????????????????????? | | #??????????????# #????????????????????????? | | #??????????????# #????????????????????????? | | #?????????????? ????????????????????????? | | #?????????????? ????????????????????????? | | #?????????????? ????????????????????????? | | #?????????????? ????????????????????????? | | + ????????? ????????????????????????? | | ####????????????????????????????????????????? | | #???????????????????????????????????????????? | | ####+#???????????????????????????????????????????? | | ?????????????????????????????????????????????????? | | ?????????????????????????????????????????????????? | | ?????????????????????????????????????????????????? | | ?????????????????????????????????????????????????? | | ?????????????????????????????????????????????????? | | ############?????????????????????????????????????? | +----------------------------------------------------+ Best States ------------- Heat Dissipation 28 Coolant Potential 50 Energy Generation 10 Energy Capacity 125 Matter Stores 300 Matter Capacity 300 Sight Range 16 Terrain Scan Density 10 Evasion (%) 62 Item Schematics ----------------- None Robot Schematics ------------------ None Fabricated ------------ Nothing Repaired ---------- Nothing Studied --------- None Alien Tech Used ----------------- None Achievements -------------- Hunted You Again Challenges ------------ None Cogshop Purchases (8) ----------------------- Imp. Flight Unit (1049) Imp. Flight Unit (1049) Lgt. Ion Engine (599) Disposable Heat Sink (Loot Box) Spread Laser (Loot Box) Shield Generator (699) Salvaging Laser (599) Enh. Nuclear Core (Loot Box) Game ------ Seed ChromaticCoolingPit Manual? 0 Play Time 00:11:09 Cumulative 39.2 hours Start 2025.11.13 @ 22:01:11 End 2025.11.13 @ 22:11:31 Sessions 1 Manual Loads 0 Difficulty Rogue Special Mode AFD2019/Pay2Buy Game No. 70 Rogue 70 Adventurer 0 Explorer 0 Win Type - Total 0 Types 0/0/0/0/0/0/0/0/0/0 Lore% 14 Gallery% 31 Achievement% 18 Wizard Run 0 Options --------- Layout 0 ASCII 0 Keyboard 0 Movement Mouse Keybinds 0 Fullscreen 2 Font 18/SmallcapsGlow Map View 76x50 Zoom Use 0% Tactical HUD 1 Map Filters NONE Filters NONE Steam 1 RUN: b919a199-14ec-46de-b6cd-5caf8828998b